fUST/lending_fUST_20240806
["ID","MTS","AMOUNT","RATE_DAILY","PERIOD"]
[334307291,1722934243598,-153.0,0.00030782,2]
[334307293,1722934243607,-153.0,0.00030782,2]
[334307294,1722934243616,-153.0,0.00030782,2]
[334307297,1722934243628,-153.0,0.00030782,2]
[334307298,1722934243637,-153.0,0.00030782,2]
[334307300,1722934243647,-153.0,0.00030782,2]
[334307303,1722934243656,-153.0,0.00030782,2]
[334307304,1722934243665,-153.0,0.00030782,2]
[334307306,1722934243674,-153.0,0.00030782,2]
[334307308,1722934243683,-153.0,0.00030782,2]
[334307310,1722934243693,-153.0,0.00030782,2]
[334307311,1722934243702,-153.0,0.00030782,2]
[334307312,1722934243712,-153.0,0.00030782,2]
[334307313,1722934243722,-153.0,0.00030782,2]
[334307314,1722934243732,-153.0,0.00030782,2]
[334307315,1722934243742,-153.0,0.00030782,2]
[334307316,1722934243751,-153.0,0.00030782,2]
[334307317,1722934243760,-153.0,0.00030782,2]
[334307318,1722934243769,-153.0,0.00030782,2]
[334307319,1722934243779,-153.0,0.00030782,2]
[334307320,1722934243789,-153.0,0.00030782,2]
[334307321,1722934243800,-153.0,0.00030782,2]
[334307322,1722934243809,-153.0,0.00030782,2]
[334307323,1722934243819,-153.0,0.00030782,2]
[334307324,1722934243829,-153.0,0.00030782,2]
[334307325,1722934243838,-153.0,0.00030782,2]
[334307326,1722934243848,-153.0,0.00030782,2]
[334307327,1722934243858,-153.0,0.00030782,2]
[334307328,1722934243868,-153.0,0.00030782,2]
[334307329,1722934243886,-153.0,0.00030782,2]
[334307330,1722934243896,-153.0,0.00030793,2]
[334307331,1722934243906,-153.0,0.00030793,2]
[334307332,1722934243916,-153.0,0.00030793,2]
[334307333,1722934243926,-153.0,0.00030793,2]
[334307334,1722934243936,-153.0,0.00030793,2]
[334307335,1722934243947,-153.0,0.00030793,2]
[334307336,1722934243959,-153.0,0.00030793,2]
[334307337,1722934243969,-153.0,0.00030793,2]
[334307338,1722934243979,-153.0,0.00030793,2]
[334307339,1722934243990,-400.0,0.00031342,5]
[334307340,1722934244001,-695.121011,0.00031507,120]
[334307341,1722934244011,-285.04956701,0.00031844,2]
[334307342,1722934244021,-88888.0,0.000319,5]
[334307343,1722934244033,-5000.0,0.00032,105]
[334307344,1722934244044,-501.46869507,0.00032078,21]
[334307345,1722934244138,-1936.99836126,0.0002334,2]
[334307408,1722934246731,-937.50179725,0.0002334,2]
[334307409,1722934246741,-153.0,0.00030782,2]
[334307410,1722934246750,-153.0,0.00030782,2]
[334307411,1722934246759,-153.0,0.00030782,2]
[334307412,1722934246768,-400.0,0.00031342,2]
[334307413,1722934246779,-8321.83899265,0.00032078,21]
[334307414,1722934246789,-1399.56048883,0.00032078,30]
[334308155,1722934475068,274.335898,0.00014247,2]
[334308159,1722934534393,1167.94419204,0.00014247,2]
[334308160,1722934536093,3601.91477368,0.00014247,2]
[334308161,1722934540143,745.64786578,0.00014247,2]
[334308163,1722934731101,297.0,0.00027,120]
[334308165,1722934955510,159.402856,0.00014247,2]
[334308195,1722935233054,155.02918317,0.00015954,2]
[334308196,1722935246108,-152.88743156,0.00016038,2]
[334308199,1722935254098,-1794.84907646,0.0001611,2]
[334308200,1722935254120,-155.10397589,0.00016532,2]
[334308201,1722935254144,-2237.8779757,0.00017632,2]
[334308202,1722935254166,-1106.1201148,0.00018999,2]
[334308203,1722935359376,663.23134442,0.00016347,2]
[334308221,1722935416107,314.98780935,0.00016347,2]
[334308244,1722935437848,-216.4657395,0.00017966,2]
[334308245,1722935437858,-300.0,0.00017977,2]
[334308246,1722935437867,-1897.28973044,0.00017978,2]
[334308247,1722935437906,-22445.80875888,0.00017978,2]
[334308248,1722935437936,-14.90853104,0.00017978,2]
[334308249,1722935437948,-541.99297964,0.00017978,2]
[334308250,1722935437958,-181.387159,0.00018435,2]
[334308251,1722935437967,-181.387159,0.00018485,2]
[334308252,1722935437976,-181.387159,0.00018536,2]
[334308253,1722935437986,-181.387159,0.00018586,2]
[334308254,1722935437995,-181.387159,0.00018637,2]
[334308255,1722935438008,-181.387159,0.00018687,2]
[334308256,1722935438017,-181.387159,0.00018738,2]
[334308257,1722935438027,-181.387159,0.00018788,2]
[334308259,1722935438036,-181.387159,0.00018839,2]
[334308261,1722935438045,-181.387159,0.0001889,2]
[334308262,1722935438055,-181.387159,0.0001894,2]
[334308263,1722935438064,-181.387159,0.00018991,2]
[334308264,1722935438073,-181.387159,0.00019041,2]
[334308265,1722935438083,-352.65665323,0.00019076,2]
[334308266,1722935438092,-170.97678705,0.00019076,2]
[334308267,1722935438102,-500.0,0.00019076,2]
[334308268,1722935438111,-500.0,0.00019076,2]
[334308269,1722935438120,-500.0,0.00019076,2]
[334308270,1722935438130,-500.0,0.00019076,2]
[334308271,1722935438139,-500.0,0.00019076,2]
[334308272,1722935438149,-500.0,0.00019076,2]
[334308273,1722935438158,-500.0,0.00019076,2]
[334308274,1722935438168,-529.58728223,0.00019076,2]
[334308275,1722935438178,-500.0,0.00019076,2]
[334308276,1722935438187,-500.0,0.00019076,2]
[334308277,1722935438197,-500.0,0.00019076,2]
[334308278,1722935438207,-500.0,0.00019076,2]
[334308279,1722935438217,-500.0,0.00019076,2]
[334308280,1722935438226,-500.0,0.00019076,2]
[334308281,1722935438236,-2978.88439499,0.00019077,2]
[334308282,1722935438245,-181.387159,0.00019092,2]
[334308283,1722935438258,-181.387159,0.00019142,2]
[334308284,1722935438268,-2849.31423163,0.00019167,2]
[334308285,1722935438277,-1643.39565176,0.00019167,7]
[334308286,1722935438287,-7001.07154863,0.00019177,2]
[334308287,1722935438297,-1610.90790663,0.00019177,2]
[334308288,1722935438307,-7472.84990077,0.00019177,2]
[334308289,1722935438316,-9110.76868748,0.00019177,2]
[334308290,1722935438326,-20762.30804091,0.00019177,2]
[334308291,1722935438336,-1109.04434069,0.00019177,2]
[334308292,1722935438345,-169.049931,0.00019178,2]
[334308293,1722935438355,-181.387159,0.00019193,2]
[334308294,1722935438365,-181.387159,0.00019243,2]
[334308295,1722935438374,-2139.49023769,0.00019256,2]
[334308296,1722935438391,-9641.65829969,0.00019256,2]
[334308297,1722935438400,-250.3081391,0.00019256,2]
[334308298,1722935438412,-277.22173043,0.00019256,2]
[334308299,1722935438421,-492.52191219,0.00019256,2]
[334308300,1722935438431,-3088.06064461,0.00019256,2]
[334308301,1722935438441,-181.387159,0.00019294,2]
[334308302,1722935438452,-181.387159,0.00019344,2]
[334308303,1722935438462,-181.387159,0.00019395,2]
[334308304,1722935438471,-2005.0,0.0001945,10]
[334308305,1722935438481,-2162.90546762,0.00019451,2]
[334308306,1722935438490,-249.2121176,0.00019451,2]
[334308307,1722935438500,-2058.30872197,0.00019451,2]
[334308308,1722935438515,-1763.75242219,0.00019451,2]
[334308309,1722935438534,-1163.02940656,0.00019451,2]
[334308310,1722935438546,-862.42234122,0.00019451,2]
[334308311,1722935438557,-1383.1311371,0.00019451,2]
[334308312,1722935438567,-500.0,0.00019455,2]
[334308313,1722935438578,-191.42211563,0.00019455,2]
[334308314,1722935438588,-329.96739052,0.00019455,2]
[334308315,1722935438599,-500.0,0.00019455,2]
[334308316,1722935438609,-500.0,0.00019455,2]
[334308317,1722935438620,-500.0,0.00019455,2]
[334308318,1722935438631,-234.49155724,0.00019455,2]
[334308319,1722935438640,-500.0,0.00019455,2]
[334308320,1722935438652,-500.0,0.00019455,2]
[334308321,1722935438661,-500.0,0.00019455,2]
[334308322,1722935438671,-4033.04569486,0.00019456,2]
[334308323,1722935438862,-2006.38533052,0.00019456,2]
[334308324,1722935438872,-1500.0,0.00019477,2]
[334308325,1722935438881,-694.06857466,0.00019477,2]
[334308326,1722935438891,-932.36255016,0.00019477,2]
[334308327,1722935438901,-1438.50307528,0.00019477,2]
[334308328,1722935438911,-35016.81526257,0.00019477,2]
[334308329,1722935438920,-180.82691021,0.00019477,2]
[334308330,1722935438931,-1536.72351208,0.00019477,2]
[334308331,1722935438940,-13821.99447544,0.00019537,2]
[334308334,1722935440104,-52097.40477246,0.00019537,2]
[334308335,1722935440116,-6039.43102537,0.0001994,2]
[334308338,1722935440126,-200.0,0.00019973,2]
[334308340,1722935440136,-65919.3992479,0.0001999,2]
[334308342,1722935440148,-320.19249005,0.00019999,2]
[334308344,1722935440159,-727.33991579,0.00019999,2]
[334308346,1722935440170,-356.70794981,0.00019999,2]
[334308348,1722935440180,-156.37509576,0.0002,2]
[334308350,1722935440190,-964.25527359,0.0002,2]
[334308352,1722935440200,-12900.0,0.0002,2]
[334308354,1722935440210,-294.13159854,0.0002,2]
[334308356,1722935440220,-154.68290005,0.0002,2]
[334308359,1722935440230,-1443.89362386,0.0002,2]
[334308360,1722935440239,-209.52917397,0.0002028,2]
[334308361,1722935440249,-6039.43102537,0.00020424,2]
[334308363,1722935440264,-274.335898,0.00020707,2]
[334308364,1722935440274,-150.112233,0.000209,4]
[334308365,1722935440284,-6039.43102537,0.00020908,2]
[334308366,1722935440293,-65919.3992479,0.00020988,3]
[334308367,1722935440303,-200.0,0.00021073,2]
[334308368,1722935440312,-400.0,0.00021342,2]
[334308369,1722935440322,-554.39334968,0.00021392,2]
[334308370,1722935440331,-6039.43102537,0.00021392,2]
[334308371,1722935440341,-159.402856,0.00021467,2]
[334308372,1722935440350,-65919.3992479,0.00021482,3]
[334308373,1722935440360,-24004.753473,0.00021492,3]
[334308374,1722935440378,-3997.02343694,0.00021492,3]
[334308375,1722935440421,-56384.48459235,0.00021492,3]
[334308376,1722935440434,-154.68290005,0.00021591,2]
[334308377,1722935440444,-174.30843248,0.00021599,2]
[334308378,1722935440455,-83043.07206354,0.00021906,2]
[334308379,1722935440465,-1793.98443533,0.00021906,2]
[334308380,1722935440475,-154.79103211,0.00021906,2]
[334308381,1722935440484,-159.3677657,0.00021915,10]
[334308382,1722935440495,-638.109491,0.00021918,30]
[334308383,1722935440509,-302.42545213,0.00022,2]
[334308384,1722935440518,-302.42545213,0.0002222,2]
[334308385,1722935440527,-302.42545213,0.0002244,2]
[334308386,1722935440536,-400.0,0.00022442,2]
[334308387,1722935440546,-302.42545213,0.0002266,2]
[334308388,1722935440555,-2978.88439496,0.00022834,2]
[334308389,1722935440568,-302.42545213,0.0002288,2]
[334308390,1722935440578,-65919.3992479,0.0002309,3]
[334308391,1722935440588,-188.8,0.000231,7]
[334308392,1722935440598,-2663.71,0.000231,14]
[334308393,1722935440607,-337.44578394,0.000231,4]
[334308394,1722935440618,-881.61577024,0.00023199,2]
[334308395,1722935440627,-600.0,0.00023346,2]
[334308396,1722935440637,-369.84,0.000237,14]
[334308397,1722935440646,-554.39334967,0.00024282,2]
[334308398,1722935440656,-150.112233,0.000243,4]
[334308399,1722935440666,-202.00344159,0.00024446,2]
[334308400,1722935440676,-200.0,0.00024658,15]
[334308401,1722935440686,-402.40869281,0.00025,2]
[334308402,1722935440695,-189.55103082,0.00025,2]
[334308403,1722935440705,-800.0,0.00025687,2]
[334308404,1722935440715,-1715.01,0.00026,2]
[334308405,1722935440724,-160.57653845,0.00026453,2]
[334308406,1722935440735,-2978.88439496,0.00026592,2]
[334308407,1722935440745,-6896.69376362,0.00027,2]
[334308408,1722935440759,-1626.04191113,0.00027,2]
[334308409,1722935440769,-4181.6719909,0.00027,2]
[334308410,1722935440779,-274.335898,0.00027167,2]
[334308411,1722935440789,-554.39334967,0.00027172,2]
[334308412,1722935440799,-153.0,0.00027397,2]
[334308413,1722935440808,-153.0,0.00027397,2]
[334308414,1722935440818,-153.0,0.00027397,2]
[334308415,1722935440828,-153.0,0.00027397,2]
[334308416,1722935440837,-150.112233,0.000278,9]
[334308417,1722935440847,-188.8,0.000278,7]
[334308418,1722935440857,-2663.71,0.000278,14]
[334308419,1722935440867,-1000.0,0.00028278,2]
[334308420,1722935440878,-159.402856,0.00028687,2]
[334308421,1722935440888,-369.84,0.000292,14]
[334308422,1722935440898,-218.18326497,0.00029989,2]
[334308423,1722935440908,-151.0,0.0003,120]
[334308424,1722935440918,-151.0,0.0003,120]
[334308425,1722935440927,-554.39334967,0.00030061,2]
[334308426,1722935440937,-2978.88439496,0.00030349,2]
[334308427,1722935440946,-153.0,0.00030468,2]
[334308428,1722935440956,-153.0,0.00030468,2]
[334308429,1722935440965,-153.0,0.00030468,2]
[334308430,1722935440975,-153.0,0.00030468,2]
[334308431,1722935440985,-153.0,0.00030468,2]
[334308432,1722935440994,-153.0,0.00030468,2]
[334308433,1722935441006,-153.0,0.00030468,2]
[334308434,1722935441015,-153.0,0.00030468,2]
[334308435,1722935441025,-153.0,0.00030468,2]
[334308436,1722935441035,-153.0,0.00030468,2]
[334308437,1722935441051,-151.0,0.00030751,7]
[334308438,1722935441060,-2500.0,0.00031,4]
[334308439,1722935441070,-1200.0,0.00031073,2]
[334308440,1722935441080,-150.112233,0.000312,7]
[334308441,1722935441089,-753.047762,0.00031507,120]
[334308442,1722935441099,-3890.03066127,0.00031634,2]
[334308443,1722935441110,-33613.94890321,0.00031997,10]
[334308444,1722935441120,-2000.000001,0.00031997,10]
[334308445,1722935441132,-1000.0,0.00032,32]
[334308446,1722935441142,-151.0,0.00032044,7]
[334308447,1722935441152,-43095.95087272,0.00032078,2]
[334308448,1722935441161,-151.0,0.00032078,7]
[334308449,1722935441171,-151.0,0.00032078,7]
[334308450,1722935441182,-776.907306,0.00032078,7]
[334308451,1722935441191,-1002.233504,0.00032078,7]
[334308452,1722935441201,-776.907306,0.00032078,7]
[334308453,1722935441212,-570.16358,0.00032078,7]
[334308454,1722935441224,-1002.233504,0.00032078,7]
[334308455,1722935441234,-570.16358,0.00032078,7]
[334308456,1722935441245,-151.0,0.00032078,7]
[334308457,1722935441257,-151.0,0.00032078,7]
[334308458,1722935441267,-151.0,0.00032078,7]
[334308459,1722935441276,-192.352152,0.00032078,7]
[334308460,1722935441286,-152.284685,0.00032105,7]
[334308461,1722935441295,-151.0,0.00032105,7]
[334308462,1722935441304,-151.0,0.00032105,7]
[334308463,1722935441316,-151.0,0.00032105,7]
[334308464,1722935441326,-151.0,0.00032105,7]
[334308465,1722935441337,-151.0,0.00032105,7]
[334308466,1722935441346,-151.0,0.00032105,7]
[334308467,1722935441356,-151.0,0.00032105,7]
[334308468,1722935441366,-300.890411,0.00032105,7]
[334308469,1722935441377,-494.552834,0.00032105,7]
[334308470,1722935441390,-151.0,0.00032105,7]
[334308471,1722935441399,-300.890411,0.00032105,7]
[334308472,1722935441409,-494.552834,0.00032105,7]
[334308473,1722935441419,-452.475474,0.00032105,7]
[334308474,1722935441430,-2394.844839,0.00032105,7]
[334308475,1722935441440,-2394.844839,0.00032105,7]
[334308476,1722935441457,-990.463874,0.00032105,7]
[334308477,1722935441466,-990.463874,0.00032105,7]
[334308478,1722935441476,-720.000201,0.00032105,7]
[334308479,1722935441485,-720.000201,0.00032105,7]
[334308480,1722935441494,-151.0,0.00032105,7]
[334308481,1722935441507,-151.0,0.00032105,7]
[334308482,1722935441516,-297.11065,0.00032105,7]
[334308483,1722935441526,-53046.42023196,0.00032113,30]
[334308505,1722935442747,-66.66883278,0.00026412,2]
[334308518,1722935445908,-333.3986771,0.00019076,2]
[334308519,1722935446115,-166.6013229,0.00019076,2]
[334308520,1722935446125,-200.48393973,0.00019076,2]
[334308521,1722935446135,-500.0,0.00019076,2]
[334308522,1722935446145,-500.0,0.00019076,2]
[334308523,1722935446155,-67.13883671,0.00019076,2]
[334308524,1722935446173,-432.86116329,0.00019076,2]
[334308525,1722935446183,-500.0,0.00019076,2]
[334308526,1722935446192,-500.0,0.00019076,2]
[334308527,1722935446203,-500.0,0.00019076,2]
[334308528,1722935446212,-500.0,0.00019076,2]
[334308529,1722935446223,-207.7516841,0.00019076,2]
[334308530,1722935446233,-543.70436211,0.00019076,2]
[334308531,1722935446243,-500.0,0.00019076,2]
[334308532,1722935446254,-500.0,0.00019076,2]
[334308533,1722935446267,-500.0,0.00019076,2]
[334308534,1722935446276,-500.0,0.00019076,2]
[334308535,1722935446286,-500.0,0.00019076,2]
[334308536,1722935446295,-93.90770567,0.00026412,2]
[334308537,1722935446305,-7.8985327,0.00032113,30]
[334308541,1722935536602,260.929518,0.00014247,2]
[334308549,1722935931787,1848.14542517,0.00015954,2]
[334308550,1722935987046,862.42234122,0.00015954,2]
[334308551,1722936029629,198.8,0.00015954,2]
[334308554,1722936208578,155.55415293,0.00015954,2]
[334308566,1722936295671,1794.84907646,0.00015954,2]
[334308570,1722936370643,154.79103211,0.00015954,2]
[334308571,1722936414729,401.209499,0.00014247,2]
[334308572,1722936433104,-213.5702453,0.00017931,2]
[334308573,1722936433129,-300.0,0.00018073,2]
[334308574,1722936433152,-1066.99199605,0.00018074,2]
[334308576,1722936451085,-226.75131212,0.00018074,2]
[334308579,1722936563139,-1991.50486571,0.00017019,2]
[334308581,1722936567115,-2025.03347454,0.00018,2]
[334308582,1722936567137,-3473.6640604,0.00018074,2]
[334308584,1722936574116,-9560.13741563,0.00018074,2]
[334308628,1722936632107,-300.0,0.00018073,2]
[334308630,1722936632118,-9853.7434555,0.00018074,2]
[334308632,1722936632130,-434.4293937,0.00018074,2]
[334308634,1722936632142,-284.2823666,0.00018074,2]
[334308636,1722936632151,-31257.72277175,0.00018696,2]
[334308639,1722936632168,-736.02,0.00018696,2]
[334308640,1722936632180,-5483.3,0.00018696,2]
[334308654,1722936640479,-423.31755793,0.00018695,2]
[334308655,1722936640488,-500.0,0.00018695,2]
[334308656,1722936640498,-500.0,0.00018695,2]
[334308657,1722936640518,-584.32571457,0.00018695,2]
[334308658,1722936640528,-500.0,0.00018695,2]
[334308659,1722936640539,-460.71955086,0.00018695,2]
[334308660,1722936640550,-45566.02929179,0.00018696,2]
[334308661,1722936640561,-1337.03846294,0.00018869,2]
[334308662,1722936640570,-2970.39058467,0.00018879,2]
[334308663,1722936640581,-869.58,0.00018911,3]
[334308664,1722936640592,-869.58,0.00018911,3]
[334308665,1722936640603,-9641.65829969,0.00018921,2]
[334308666,1722936640615,-951.94046237,0.00018945,2]
[334308667,1722936640626,-2874.80344712,0.00018945,2]
[334308668,1722936640636,-500.0,0.00018968,2]
[334308669,1722936640647,-307.11346221,0.00018968,2]
[334308670,1722936640658,-500.0,0.00018968,2]
[334308671,1722936640669,-500.0,0.00018968,2]
[334308672,1722936640680,-500.0,0.00018968,2]
[334308673,1722936640691,-164.14409007,0.00018968,2]
[334308674,1722936640702,-500.0,0.00018968,2]
[334308675,1722936640713,-500.0,0.00018968,2]
[334308676,1722936640724,-500.0,0.00018968,2]
[334308677,1722936640733,-500.0,0.00018968,2]
[334308678,1722936640744,-58423.9292446,0.00018969,2]
[334308679,1722936640758,-1091.69139402,0.00018969,2]
[334308680,1722936640768,-1615.07380948,0.00018979,3]
[334308681,1722936640777,-188.24924053,0.00018979,2]
[334308682,1722936640787,-155.14905259,0.00018989,2]
[334308683,1722936640797,-344.27180303,0.00018989,2]
[334308684,1722936640807,-808.14934153,0.00018989,2]
[334308685,1722936640817,-219.1840785,0.00018999,2]
[334308686,1722936640829,-1337.03846292,0.00019127,2]
[334308687,1722936640842,-3088.06064461,0.00019139,2]
[334308688,1722936640853,-1163.02940656,0.00019147,2]
[334308689,1722936640863,-1448.92868292,0.00019147,7]
[334308690,1722936640873,-1793.60830206,0.00019147,2]
[334308691,1722936640882,-58423.9292446,0.00019167,2]
[334308692,1722936640892,-277.22173043,0.00019167,2]
[334308693,1722936640902,-200.0,0.00019173,2]
[334308694,1722936640912,-2162.90546762,0.00019177,2]
[334308695,1722936640927,-2849.31423163,0.00019177,2]
[334308696,1722936640940,-1610.90790663,0.00019177,2]
[334308697,1722936640950,-168.964362,0.00019178,2]
[334308698,1722936640959,-172.023901,0.00019178,2]
[334308699,1722936640969,-2139.49023769,0.00019256,2]
[334308700,1722936640979,-1383.1311371,0.00019256,2]
[334308701,1722936640989,-1438.50307528,0.00019256,2]
[334308702,1722936640999,-1337.03846292,0.00019385,2]
[334308703,1722936641008,-159.3677657,0.0001945,10]
[334308704,1722936641018,-1763.75242219,0.00019451,2]
[334308705,1722936641028,-35016.81526257,0.00019451,2]
[334308706,1722936641037,-1500.0,0.00019451,2]
[334308707,1722936641047,-154.66746495,0.00019451,2]
[334308708,1722936641056,-412.11713438,0.00019477,2]
[334308709,1722936641066,-1109.04434069,0.00019477,2]
[334308710,1722936641076,-1337.03846292,0.00019642,2]
[334308711,1722936641085,-420.0,0.0001988,2]
[334308712,1722936641095,-1337.03846292,0.000199,2]
[334308713,1722936641107,-200.0,0.00019973,2]
[334308714,1722936641118,-58423.9292446,0.00019989,2]
[334308715,1722936641128,-58423.9292446,0.0001999,2]
[334308716,1722936641139,-18267.44545961,0.0002,2]
[334308717,1722936641149,-156.37509576,0.0002,2]
[334308718,1722936641159,-192.62832604,0.0002,2]
[334308719,1722936641171,-202.52321254,0.0002,2]
[334308720,1722936641180,-174.30843248,0.0002,2]
[334308721,1722936641190,-154.99431637,0.0002,2]
[334308722,1722936641200,-1443.89362386,0.0002,2]
[334308723,1722936641210,-329.89917122,0.0002,2]
[334308724,1722936641221,-11838.67099976,0.0002,2]
[334308738,1722936870029,195.434364,0.00014247,2]
[334308741,1722936909218,1495.72315932,0.00014247,2]
[334308778,1722937272949,951.94046237,0.00015954,2]
[334308779,1722937354408,381.149024,0.00014247,2]
[334308780,1722937375924,203.38615614,0.00015954,2]
[334308781,1722937379994,215.44593649,0.00015954,2]
[334308782,1722937393276,2139.49023769,0.00015954,2]
[334308807,1722937639149,-336.24575672,0.00016038,2]
[334308808,1722937639172,-1685.12333124,0.00017019,2]
[334308809,1722937647183,-198.26949191,0.00017019,2]
[334308811,1722937761102,-300.0,0.00016109,2]
[334308812,1722937761127,-15179.88419533,0.00016282,2]
[334308813,1722937763119,-20762.30804091,0.00016095,2]
[334308814,1722937763143,-9720.11580467,0.00016282,2]
[334308815,1722937763167,-500.0,0.00016346,2]
[334308816,1722937763194,-500.0,0.00016346,2]
[334308817,1722937763219,-404.21286744,0.00016346,2]
[334308818,1722937763241,-506.16619394,0.00016346,2]
[334308819,1722937763277,-523.08011942,0.00016346,2]
[334308820,1722937763307,-500.0,0.00016346,2]
[334308821,1722937763332,-500.0,0.00016346,2]
[334308822,1722937763357,-344.30681502,0.00016346,2]
[334308823,1722937763383,-170.454546,0.00017041,2]
[334308824,1722937763408,-170.454546,0.0001713,2]
[334308825,1722937763434,-170.454546,0.00017219,2]
[334308826,1722937763467,-170.454546,0.00017308,2]
[334308827,1722937763493,-170.454546,0.00017396,2]
[334308828,1722937763518,-170.454546,0.00017485,2]
[334308829,1722937772155,-170.454546,0.00017574,2]
[334308830,1722937772182,-170.454546,0.00017663,2]
[334308831,1722937772204,-420.0,0.0001772,2]
[334308832,1722937772243,-170.454546,0.00017751,2]
[334308833,1722937772265,-170.454546,0.0001784,2]
[334308834,1722937772287,-170.454546,0.00017929,2]
[334308841,1722937832225,-5139.80408999,0.00018316,2]
[334308880,1722937838066,-3970.96459749,0.00018316,2]
[334308881,1722937838075,-2124.82285669,0.00018921,2]
[334308882,1722937838085,-250.0,0.00019041,2]
[334308883,1722937838094,-2849.31423163,0.00019102,2]
[334308884,1722937838105,-1168.14210948,0.00019139,2]
[334308885,1722937838117,-3094.69461851,0.00019167,2]
[334308886,1722937838127,-1109.04434069,0.00019167,2]
[334308887,1722937838136,-204.92297945,0.00019176,2]
[334308888,1722937838145,-1524.6162278,0.00019177,2]
[334308889,1722937838155,-2161.35290212,0.00019177,2]
[334308890,1722937838164,-277.18370616,0.00019177,2]
[334308891,1722937838174,-763.06904146,0.00019177,2]
[334308892,1722937838184,-13987.92372495,0.00019177,2]
[334308893,1722937838194,-1500.0,0.00019256,2]
[334308894,1722937838204,-1763.75242219,0.00019256,2]
[334308895,1722937838214,-2038.50656792,0.00019451,2]
[334308896,1722937838223,-195.42973858,0.00019451,2]
[334308897,1722937838232,-1437.67165872,0.00019477,2]
[334308898,1722937838242,-35613.94890321,0.00019534,2]
[334308899,1722937838251,-269.49494041,0.00019536,2]
[334308900,1722937838260,-500.0,0.00019536,2]
[334308902,1722937838270,-500.0,0.00019536,2]
[334308904,1722937838280,-500.0,0.00019536,2]
[334308906,1722937838289,-500.0,0.00019536,2]
[334308907,1722937838298,-500.0,0.00019536,2]
[334308908,1722937838307,-177.04491087,0.00019536,2]
[334308909,1722937838317,-500.0,0.00019536,2]
[334308910,1722937838326,-300.0,0.00019536,2]
[334308911,1722937838335,-500.0,0.00019536,2]
[334308912,1722937838344,-500.0,0.00019536,2]
[334308913,1722937838354,-50765.8535954,0.00019537,2]
[334308914,1722937838363,-269.73277317,0.00019547,2]
[334308915,1722937838372,-844.51315307,0.00019547,2]
[334308916,1722937838384,-766.39475356,0.00019547,2]
[334308917,1722937838394,-3890.03066127,0.00019906,2]
[334308918,1722937838403,-6380.67458517,0.00019979,2]
[334308921,1722937840313,-250.38146921,0.00019451,2]
[334308922,1722937840323,-44385.17901023,0.00019979,2]
[334308923,1722937840333,-46549.1074028,0.0001998,2]
[334308954,1722937843272,-19.86022475,0.0001998,2]
[334308969,1722937846512,-9110.76868748,0.00018125,2]
[334308970,1722937846525,-3566.8102941,0.00019899,2]
[334308971,1722937903585,195.434364,0.00014247,2]
[334308972,1722937950663,324.60775045,0.00017269,2]
[334308975,1722938313188,1793.25644441,0.00015954,2]
[334308976,1722938325197,1162.72829906,0.00015954,2]
[334308977,1722938357064,951.94046237,0.00015954,2]
[334308978,1722938357247,862.42234122,0.00015954,2]
[334308979,1722938375299,1716.61816736,0.00015954,2]
[334308980,1722938387845,1239.69729321,0.00015954,2]
[334308981,1722938397633,3785.54866294,0.00015954,2]
[334308983,1722938404710,2269.8181466,0.00015954,2]
[334308984,1722938412367,912.60929894,0.00015954,2]
[334308985,1722938413359,3602.88765659,0.00015954,2]
[334308986,1722938423524,451.89339907,0.00015954,2]
[334308987,1722938436361,209.75633531,0.00015954,2]
[334308988,1722938440341,269.73277317,0.00015954,2]
[334308989,1722938444327,362.091572,0.00014247,2]
[334308990,1722938445550,492.52191219,0.00015954,2]
[334308994,1722938502347,912.4763458,0.00015954,2]
[334308996,1722938514398,1202.68115812,0.00015954,2]